[Event "Late-Titled-Tuesday-Blitz-February-20-2024"]
[Site "Chess.com"]
[Date "2024.02.20"]
[Round "7"]
[White "ArtemDyachuk"]
[Black "DanielNaroditsky"]
[Result "1-0"]
[WhiteElo "2669"]
[BlackElo "3080"]
[TimeControl "180+1"]
[EndTime "15:17:43 PST"]
[Termination "ArtemDyachuk won by resignation"]

1. e4 {[%clk 0:03:00.9]} 1... Nf6 {[%clk 0:02:59.4]} 2. e5 {[%clk 0:03:01.4]}
2... Nd5 {[%clk 0:02:59.9]} 3. d4 {[%clk 0:03:02]} 3... d6 {[%clk 0:03:00.1]} 4.
c4 {[%clk 0:03:02.4]} 4... Nb6 {[%clk 0:03:00.8]} 5. f4 {[%clk 0:03:03]} 5...
dxe5 {[%clk 0:03:00.8]} 6. fxe5 {[%clk 0:03:03.9]} 6... Bf5 {[%clk 0:03:01.4]}
7. Nc3 {[%clk 0:03:03]} 7... e6 {[%clk 0:03:01.8]} 8. Nf3 {[%clk 0:02:58.7]}
8... Bb4 {[%clk 0:03:02.5]} 9. Bd3 {[%clk 0:02:58.4]} 9... c5 {[%clk 0:02:46.8]}
10. Bg5 {[%clk 0:02:56.3]} 10... Qd7 {[%clk 0:02:42.8]} 11. Bxf5 {[%clk
0:02:56.3]} 11... cxd4 {[%clk 0:02:39.6]} 12. Nxd4 {[%clk 0:02:57.2]} 12... exf5
{[%clk 0:02:39.3]} 13. Nxf5 {[%clk 0:02:58.1]} 13... Qxd1+ {[%clk 0:01:55.6]}
14. Rxd1 {[%clk 0:02:59]} 14... O-O {[%clk 0:01:55.8]} 15. O-O {[%clk
0:02:23.7]} 15... Nc6 {[%clk 0:01:46.7]} 16. Nd5 {[%clk 0:02:23.9]} 16... Bc5+
{[%clk 0:01:41.7]} 17. Kh1 {[%clk 0:02:23.8]} 17... Nxd5 {[%clk 0:01:09.7]} 18.
cxd5 {[%clk 0:02:23]} 18... Nxe5 {[%clk 0:01:10.1]} 19. Nxg7 {[%clk 0:02:13.4]}
19... Ng4 {[%clk 0:00:51]} 20. Nf5 {[%clk 0:01:58.5]} 20... f6 {[%clk
0:00:46.2]} 21. Bh4 {[%clk 0:01:21.2]} 21... Rad8 {[%clk 0:00:46.5]} 22. h3
{[%clk 0:01:02.3]} 22... Ne5 {[%clk 0:00:44.7]} 23. d6 {[%clk 0:01:02.3]} 23...
Rd7 {[%clk 0:00:34.4]} 24. Rd5 {[%clk 0:01:02]} 24... b6 {[%clk 0:00:28.9]} 25.
Bg3 {[%clk 0:00:44.3]} 25... Ng6 {[%clk 0:00:26.2]} 26. a3 {[%clk 0:00:31.9]}
26... a5 {[%clk 0:00:25]} 27. h4 {[%clk 0:00:27.3]} 27... Re8 {[%clk 0:00:20.4]}
28. Nh6+ {[%clk 0:00:22.1]} 28... Kg7 {[%clk 0:00:20.5]} 29. Ng4 {[%clk
0:00:18.2]} 29... Re6 {[%clk 0:00:18.2]} 30. h5 {[%clk 0:00:18.4]} 30... Nh8
{[%clk 0:00:04.5]} 31. Rxf6 {[%clk 0:00:14.8]} 31... Rxf6 {[%clk 0:00:03.3]} 32.
Be5 {[%clk 0:00:15.3]} 32... Kf7 {[%clk 0:00:02.4]} 33. Bxf6 {[%clk 0:00:15.1]}
33... Ke6 {[%clk 0:00:02.5]} 34. Re5+ {[%clk 0:00:15]} 34... Kxd6 {[%clk
0:00:02.7]} 35. Bxh8 {[%clk 0:00:14.8]} 35... Rf7 {[%clk 0:00:03.4]} 36. Re4
{[%clk 0:00:12.8]} 36... Rf1+ {[%clk 0:00:03.4]} 37. Kh2 {[%clk 0:00:13.2]}
37... Kd5 {[%clk 0:00:04.2]} 38. Re5+ {[%clk 0:00:12.9]} 38... Kc4 {[%clk
0:00:04.5]} 39. Ne3+ {[%clk 0:00:12.6]} 39... Bxe3 {[%clk 0:00:03.7]} 40. Rxe3
{[%clk 0:00:13.5]} 40... a4 {[%clk 0:00:02.3]} 41. Bc3 {[%clk 0:00:13.9]} 41...
Rf5 {[%clk 0:00:01.9]} 42. g4 {[%clk 0:00:14.1]} 42... Rf7 {[%clk 0:00:02.4]}
43. Kg3 {[%clk 0:00:14.4]} 43... b5 {[%clk 0:00:03.1]} 44. g5 {[%clk 0:00:14.7]}
44... Kb3 {[%clk 0:00:03]} 45. g6 {[%clk 0:00:14.2]} 45... hxg6 {[%clk
0:00:03.4]} 46. hxg6 {[%clk 0:00:15.1]} 46... Rf1 {[%clk 0:00:03.7]} 47. g7
{[%clk 0:00:15.4]} 47... Kc2 {[%clk 0:00:04.4]} 48. Kg2 {[%clk 0:00:14.9]} 48...
Rc1 {[%clk 0:00:03.9]} 49. g8=Q {[%clk 0:00:14.7]} 49... b4 {[%clk 0:00:04.8]}
50. Qg6+ {[%clk 0:00:14.6]} 50... Kb3 {[%clk 0:00:04.1]} 51. Bd4+ {[%clk
0:00:14.2]} 51... Ka2 {[%clk 0:00:04.1]} 52. axb4 {[%clk 0:00:14.2]} 52... Rc3
{[%clk 0:00:02.2]} 53. Bxc3 {[%clk 0:00:12.5]} 53... Kb3 {[%clk 0:00:02.5]} 54.
Qe6+ {[%clk 0:00:12.1]} 54... Kc2 {[%clk 0:00:02.9]} 55. Qe4+ {[%clk 0:00:11.5]}
1-0

[Event "Late-Titled-Tuesday-Blitz-February-20-2024"]
[Site "Chess.com"]
[Date "2024.02.20"]
[Round "7"]
[White "Gentlejimmy7"]
[Black "CFalcons8"]
[Result "1-0"]
[WhiteElo "2576"]
[BlackElo "2421"]
[TimeControl "180+1"]
[EndTime "15:17:43 PST"]
[Termination "Gentlejimmy7 won by resignation"]

1. c4 {[%clk 0:03:00.9]} 1... c6 {[%clk 0:02:59.1]} 2. d4 {[%clk 0:02:57.4]}
2... d5 {[%clk 0:02:58.7]} 3. cxd5 {[%clk 0:02:58.3]} 3... cxd5 {[%clk
0:02:59.1]} 4. Nc3 {[%clk 0:02:58.7]} 4... Nf6 {[%clk 0:02:58.4]} 5. Nf3 {[%clk
0:02:59.6]} 5... Bf5 {[%clk 0:02:57.8]} 6. Bf4 {[%clk 0:02:56.6]} 6... e6 {[%clk
0:02:55.6]} 7. e3 {[%clk 0:02:57.2]} 7... Nc6 {[%clk 0:02:50.5]} 8. Bb5 {[%clk
0:02:57.3]} 8... Bb4 {[%clk 0:02:48.2]} 9. O-O {[%clk 0:02:49.7]} 9... O-O
{[%clk 0:02:46.5]} 10. Bxc6 {[%clk 0:02:49.6]} 10... bxc6 {[%clk 0:02:47.4]} 11.
Na4 {[%clk 0:02:49.6]} 11... Bd6 {[%clk 0:02:35.3]} 12. Bxd6 {[%clk 0:02:45.6]}
12... Qxd6 {[%clk 0:02:36.2]} 13. Ne5 {[%clk 0:02:45.2]} 13... Nd7 {[%clk
0:02:29.7]} 14. Nxd7 {[%clk 0:02:45]} 14... Qxd7 {[%clk 0:02:30.6]} 15. Nc5
{[%clk 0:02:45.3]} 15... Qd6 {[%clk 0:02:30.6]} 16. Qa4 {[%clk 0:02:42.3]} 16...
Rab8 {[%clk 0:02:27.4]} 17. b3 {[%clk 0:02:40.6]} 17... Qc7 {[%clk 0:02:22.2]}
18. Rfc1 {[%clk 0:02:39.7]} 18... Rb6 {[%clk 0:02:22]} 19. Rc3 {[%clk
0:02:39.1]} 19... e5 {[%clk 0:02:12.8]} 20. Rac1 {[%clk 0:02:36.8]} 20... exd4
{[%clk 0:02:11.6]} 21. Qxd4 {[%clk 0:02:34.8]} 21... Rc8 {[%clk 0:02:05]} 22.
Na4 {[%clk 0:02:34.6]} 22... Rb5 {[%clk 0:02:02.2]} 23. Rc5 {[%clk 0:02:12.3]}
23... Qa5 {[%clk 0:01:55.7]} 24. Qxd5 {[%clk 0:02:01.9]} 24... Rxc5 {[%clk
0:01:44.9]} 25. Qxc5 {[%clk 0:02:01.3]} 25... Qd2 {[%clk 0:01:39.8]} 26. Ra1
{[%clk 0:01:52.5]} 26... Rd8 {[%clk 0:01:35.4]} 27. h3 {[%clk 0:01:47.3]} 27...
Be4 {[%clk 0:01:04.1]} 28. Qc4 {[%clk 0:01:45.8]} 28... Bd5 {[%clk 0:00:59.9]}
29. Qc3 {[%clk 0:01:43.9]} 29... Qe2 {[%clk 0:00:54.5]} 30. Nc5 {[%clk
0:01:40.3]} 30... h6 {[%clk 0:00:41.8]} 31. Re1 {[%clk 0:01:39.1]} 31... Qh5
{[%clk 0:00:34.5]} 32. e4 {[%clk 0:01:39.3]} 32... Be6 {[%clk 0:00:23.1]} 33.
Nxe6 {[%clk 0:01:39.4]} 33... fxe6 {[%clk 0:00:24]} 34. Qxc6 {[%clk 0:01:39.5]}
34... Qe5 {[%clk 0:00:22.1]} 35. Qc2 {[%clk 0:01:36.6]} 35... Rf8 {[%clk
0:00:18.1]} 36. f3 {[%clk 0:01:34.7]} 36... Qd4+ {[%clk 0:00:17.6]} 37. Qf2
{[%clk 0:01:34.7]} 37... Qe5 {[%clk 0:00:17.6]} 38. Qxa7 {[%clk 0:01:33.3]}
38... Qc3 {[%clk 0:00:16.3]} 39. Qf2 {[%clk 0:01:32.9]} 39... Ra8 {[%clk
0:00:15]} 40. Rd1 {[%clk 0:01:27.7]} 40... Kh7 {[%clk 0:00:14.5]} 41. Qd2 {[%clk
0:01:25.5]} 41... Qc5+ {[%clk 0:00:14]} 42. Qd4 {[%clk 0:01:22.6]} 42... Qc2
{[%clk 0:00:12.7]} 43. e5 {[%clk 0:01:20.9]} 43... Rxa2 {[%clk 0:00:11.8]} 44.
Qd3+ {[%clk 0:01:21.1]} 44... Qxd3 {[%clk 0:00:12.1]} 45. Rxd3 {[%clk
0:01:21.8]} 45... Kg6 {[%clk 0:00:12.1]} 46. Rd4 {[%clk 0:01:01.9]} 46... Kf5
{[%clk 0:00:12]} 47. f4 {[%clk 0:01:00.5]} 47... h5 {[%clk 0:00:10]} 48. Kh2
{[%clk 0:00:52.4]} 48... h4 {[%clk 0:00:09.3]} 49. Rd7 {[%clk 0:00:52.5]} 49...
Kxf4 {[%clk 0:00:07.1]} 50. Rxg7 {[%clk 0:00:53.1]} 50... Kxe5 {[%clk
0:00:07.6]} 51. Rg4 {[%clk 0:00:53]} 51... Rb2 {[%clk 0:00:07.4]} 52. b4 {[%clk
0:00:52.5]} 52... Kf5 {[%clk 0:00:07.9]} 53. Rxh4 {[%clk 0:00:52.8]} 53... e5
{[%clk 0:00:08.5]} 54. Kg3 {[%clk 0:00:51.2]} 54... Rb3+ {[%clk 0:00:08.4]} 55.
Kf2 {[%clk 0:00:50.9]} 55... Kg5 {[%clk 0:00:05.4]} 56. Rc4 {[%clk 0:00:48.3]}
56... Kf5 {[%clk 0:00:05.8]} 57. g4+ {[%clk 0:00:47.9]} 57... Kg5 {[%clk
0:00:05.6]} 58. Kg2 {[%clk 0:00:47.3]} 58... Rb2+ {[%clk 0:00:05.5]} 59. Kf3
{[%clk 0:00:46.4]} 59... Rb3+ {[%clk 0:00:05.9]} 60. Ke4 {[%clk 0:00:46.6]}
60... Rxh3 {[%clk 0:00:03.2]} 61. Kxe5 {[%clk 0:00:47]} 61... Rh1 {[%clk
0:00:04.1]} 62. Kd6 {[%clk 0:00:44.7]} 62... Rb1 {[%clk 0:00:04.6]} 63. Kc6
{[%clk 0:00:44.4]} 63... Rb2 {[%clk 0:00:03.6]} 64. b5 {[%clk 0:00:44.7]} 64...
Kf6 {[%clk 0:00:03.3]} 65. b6 {[%clk 0:00:45.2]} 65... Ke7 {[%clk 0:00:03.8]}
66. Kc7 {[%clk 0:00:43.8]} 66... Kf6 {[%clk 0:00:03.4]} 67. b7 {[%clk
0:00:43.7]} 67... Kg5 {[%clk 0:00:04]} 68. b8=Q {[%clk 0:00:43.5]} 68... Rxb8
{[%clk 0:00:04.9]} 69. Kxb8 {[%clk 0:00:43.9]} 1-0

[Event "Late-Titled-Tuesday-Blitz-February-20-2024"]
[Site "Chess.com"]
[Date "2024.02.20"]
[Round "7"]
[White "lucasran"]
[Black "Durarbayli"]
[Result "0-1"]
[WhiteElo "2644"]
[BlackElo "2950"]
[TimeControl "180+1"]
[EndTime "15:17:45 PST"]
[Termination "Durarbayli won on time"]

1. Nf3 {[%clk 0:03:00]} 1... c5 {[%clk 0:02:58.7]} 2. c4 {[%clk 0:03:00.3]} 2...
Nc6 {[%clk 0:02:57.9]} 3. Nc3 {[%clk 0:03:00.7]} 3... g6 {[%clk 0:02:58.4]} 4.
e3 {[%clk 0:03:01.1]} 4... Nf6 {[%clk 0:02:57.7]} 5. d4 {[%clk 0:03:01.7]} 5...
cxd4 {[%clk 0:02:58.6]} 6. exd4 {[%clk 0:03:02.6]} 6... d5 {[%clk 0:02:59.3]} 7.
cxd5 {[%clk 0:03:03.5]} 7... Nxd5 {[%clk 0:02:59.9]} 8. Qb3 {[%clk 0:03:04.1]}
8... Nxc3 {[%clk 0:02:56]} 9. Bc4 {[%clk 0:03:04.2]} 9... Nd5 {[%clk 0:02:55.9]}
10. Bxd5 {[%clk 0:03:04.7]} 10... e6 {[%clk 0:02:56.4]} 11. Bxc6+ {[%clk
0:03:02.9]} 11... bxc6 {[%clk 0:02:57.3]} 12. O-O {[%clk 0:03:03.3]} 12... Qd5
{[%clk 0:02:57.3]} 13. Qe3 {[%clk 0:03:03.8]} 13... f6 {[%clk 0:02:57.1]} 14.
Bd2 {[%clk 0:03:01.2]} 14... Kf7 {[%clk 0:02:44]} 15. Rfc1 {[%clk 0:03:00.2]}
15... Bb7 {[%clk 0:02:42.4]} 16. Qb3 {[%clk 0:02:40.5]} 16... Qxb3 {[%clk
0:02:30.3]} 17. axb3 {[%clk 0:02:41.4]} 17... Be7 {[%clk 0:02:26.2]} 18. Be3
{[%clk 0:02:41.5]} 18... Rhd8 {[%clk 0:02:23.4]} 19. Nd2 {[%clk 0:02:41.8]}
19... Rd5 {[%clk 0:02:15.3]} 20. Nc4 {[%clk 0:02:40.2]} 20... Bd8 {[%clk
0:01:25.6]} 21. Bf4 {[%clk 0:02:40.2]} 21... Ke7 {[%clk 0:01:22]} 22. Bd2 {[%clk
0:02:10.5]} 22... Rxd4 {[%clk 0:00:58.8]} 23. Bb4+ {[%clk 0:02:10.6]} 23... Kd7
{[%clk 0:00:55.4]} 24. Bc5 {[%clk 0:02:01.5]} 24... Rd3 {[%clk 0:00:49.4]} 25.
b4 {[%clk 0:02:01.8]} 25... a6 {[%clk 0:00:45.4]} 26. Rd1 {[%clk 0:01:57.4]}
26... Rd5 {[%clk 0:00:45.5]} 27. Ne3 {[%clk 0:01:52.3]} 27... Bc7 {[%clk
0:00:45.7]} 28. Nxd5 {[%clk 0:01:51.8]} 28... cxd5 {[%clk 0:00:46.6]} 29. b5
{[%clk 0:01:30.4]} 29... axb5 {[%clk 0:00:45.3]} 30. Rxa8 {[%clk 0:01:31.3]}
30... Bxa8 {[%clk 0:00:45.9]} 31. Ra1 {[%clk 0:01:32.2]} 31... Bb7 {[%clk
0:00:45.3]} 32. b4 {[%clk 0:01:26.1]} 32... e5 {[%clk 0:00:45.5]} 33. f3 {[%clk
0:01:25.5]} 33... d4 {[%clk 0:00:44.7]} 34. Kf2 {[%clk 0:01:25.8]} 34... f5
{[%clk 0:00:34.7]} 35. f4 {[%clk 0:01:26.1]} 35... d3 {[%clk 0:00:28.4]} 36.
fxe5 {[%clk 0:01:23.9]} 36... Bxe5 {[%clk 0:00:29.3]} 37. Rd1 {[%clk 0:01:21.9]}
37... Be4 {[%clk 0:00:26.4]} 38. g3 {[%clk 0:01:17.7]} 38... Ke6 {[%clk
0:00:26]} 39. Be3 {[%clk 0:00:57.8]} 39... Bc3 {[%clk 0:00:20.6]} 40. Bd2 {[%clk
0:00:56.4]} 40... Bd4+ {[%clk 0:00:20.6]} 41. Be3 {[%clk 0:00:56.8]} 41... Bb2
{[%clk 0:00:19.2]} 42. Rb1 {[%clk 0:00:47.4]} 42... Be5 {[%clk 0:00:16.4]} 43.
Rc1 {[%clk 0:00:46.7]} 43... g5 {[%clk 0:00:12.8]} 44. Rc5 {[%clk 0:00:45.9]}
44... f4 {[%clk 0:00:13.1]} 45. gxf4 {[%clk 0:00:46.4]} 45... gxf4 {[%clk
0:00:14]} 46. Rxb5 {[%clk 0:00:14.9]} 46... fxe3+ {[%clk 0:00:13.5]} 47. Kxe3
{[%clk 0:00:15.8]} 47... Bg6 {[%clk 0:00:13.7]} 48. h4 {[%clk 0:00:12.7]} 48...
Bc3 {[%clk 0:00:11.2]} 49. Rg5 {[%clk 0:00:01.6]} 49... d2 {[%clk 0:00:10.5]}
50. Rg1 {[%clk 0:00:01.5]} 50... Bxb4 {[%clk 0:00:10.9]} 0-1

[Event "Late-Titled-Tuesday-Blitz-February-20-2024"]
[Site "Chess.com"]
[Date "2024.02.20"]
[Round "7"]
[White "subham777"]
[Black "GnowReopard"]
[Result "0-1"]
[WhiteElo "2607"]
[BlackElo "2828"]
[TimeControl "180+1"]
[EndTime "15:17:45 PST"]
[Termination "GnowReopard won on time"]

1. e4 {[%clk 0:03:00.9]} 1... c5 {[%clk 0:02:59.2]} 2. Nf3 {[%clk 0:03:00.5]}
2... d6 {[%clk 0:02:59]} 3. d4 {[%clk 0:03:00.4]} 3... cxd4 {[%clk 0:02:59.9]}
4. Qxd4 {[%clk 0:03:00.9]} 4... Nf6 {[%clk 0:03:00.5]} 5. e5 {[%clk 0:02:58.8]}
5... Nc6 {[%clk 0:02:41.8]} 6. Bb5 {[%clk 0:02:57.7]} 6... Nd7 {[%clk
0:02:40.3]} 7. Bxc6 {[%clk 0:02:56.1]} 7... bxc6 {[%clk 0:02:40.3]} 8. exd6
{[%clk 0:02:56.5]} 8... e5 {[%clk 0:02:39.2]} 9. Qe4 {[%clk 0:02:34.8]} 9... Bb7
{[%clk 0:02:11.9]} 10. O-O {[%clk 0:02:06.3]} 10... Bxd6 {[%clk 0:02:11.6]} 11.
Rd1 {[%clk 0:02:00.3]} 11... Qc7 {[%clk 0:02:10.5]} 12. Nc3 {[%clk 0:01:50.3]}
12... Rd8 {[%clk 0:01:52.7]} 13. Bg5 {[%clk 0:01:44.9]} 13... f6 {[%clk
0:01:52.5]} 14. Bh4 {[%clk 0:01:43.6]} 14... O-O {[%clk 0:01:51.3]} 15. Qf5
{[%clk 0:01:38.8]} 15... Nc5 {[%clk 0:01:36.4]} 16. b4 {[%clk 0:01:28]} 16...
Bc8 {[%clk 0:01:36.3]} 17. Qh5 {[%clk 0:01:21.3]} 17... Ne6 {[%clk 0:01:36.2]}
18. Bg3 {[%clk 0:01:05.1]} 18... Bxb4 {[%clk 0:01:34.6]} 19. Ne4 {[%clk
0:00:59.7]} 19... g6 {[%clk 0:01:13.3]} 20. Qh6 {[%clk 0:00:53.8]} 20... Rf7
{[%clk 0:01:12.8]} 21. Nxf6+ {[%clk 0:00:31.5]} 21... Rxf6 {[%clk 0:01:10]} 22.
Bxe5 {[%clk 0:00:32.1]} 22... Qg7 {[%clk 0:00:41]} 23. Qh4 {[%clk 0:00:25.7]}
23... Be7 {[%clk 0:00:40.5]} 24. Bxf6 {[%clk 0:00:20.2]} 24... Bxf6 {[%clk
0:00:38.3]} 25. Qc4 {[%clk 0:00:19.5]} 25... Rd5 {[%clk 0:00:26.3]} 26. Rab1
{[%clk 0:00:16.8]} 26... Qd7 {[%clk 0:00:23]} 27. Rxd5 {[%clk 0:00:15.9]} 27...
cxd5 {[%clk 0:00:23.9]} 28. Qd3 {[%clk 0:00:14.4]} 28... Kg7 {[%clk 0:00:23.4]}
29. h3 {[%clk 0:00:13.2]} 29... d4 {[%clk 0:00:22.3]} 30. Nd2 {[%clk 0:00:12.1]}
30... Bb7 {[%clk 0:00:22.2]} 31. Qb3 {[%clk 0:00:07.6]} 31... Bd5 {[%clk
0:00:21.5]} 32. Qb8 {[%clk 0:00:06.6]} 32... h5 {[%clk 0:00:16.4]} 33. Nb3
{[%clk 0:00:06.3]} 33... Nf4 {[%clk 0:00:15.2]} 34. Qxf4 {[%clk 0:00:05.2]}
34... Bc6 {[%clk 0:00:10.3]} 35. Qg3 {[%clk 0:00:04.5]} 35... Qd5 {[%clk
0:00:10.3]} 36. Nd2 {[%clk 0:00:05.1]} 36... Be5 {[%clk 0:00:09.7]} 37. Qf3
{[%clk 0:00:04.9]} 37... Qc5 {[%clk 0:00:09.3]} 38. Qe2 {[%clk 0:00:04.8]} 38...
Qd5 {[%clk 0:00:07]} 39. Nf3 {[%clk 0:00:05]} 39... Bf6 {[%clk 0:00:06.9]} 40.
Re1 {[%clk 0:00:05.2]} 40... h4 {[%clk 0:00:06.3]} 41. Qd3 {[%clk 0:00:03.3]}
41... Qxa2 {[%clk 0:00:05.7]} 42. Qd2 {[%clk 0:00:01.9]} 42... Qd5 {[%clk
0:00:05.6]} 43. Qf4 {[%clk 0:00:02.5]} 43... g5 {[%clk 0:00:05]} 44. Qg4 {[%clk
0:00:02.2]} 44... Kg6 {[%clk 0:00:05.2]} 45. Qc8 {[%clk 0:00:01.7]} 45... a5
{[%clk 0:00:03.7]} 46. Qb8 {[%clk 0:00:01.7]} 46... a4 {[%clk 0:00:04]} 47. Ra1
{[%clk 0:00:01]} 47... Qc5 {[%clk 0:00:03.8]} 0-1

[Event "Late-Titled-Tuesday-Blitz-February-20-2024"]
[Site "Chess.com"]
[Date "2024.02.20"]
[Round "7"]
[White "GMRAVEN_ON_YOUTUBE"]
[Black "zverr1"]
[Result "0-1"]
[WhiteElo "2745"]
[BlackElo "2578"]
[TimeControl "180+1"]
[EndTime "15:17:45 PST"]
[Termination "zverr1 won on time"]

1. f4 {[%clk 0:03:00.7]} 1... c6 {[%clk 0:02:51.4]} 2. Nf3 {[%clk 0:02:59.7]}
2... d5 {[%clk 0:02:50.6]} 3. e3 {[%clk 0:02:58.3]} 3... g6 {[%clk 0:02:49.4]}
4. d4 {[%clk 0:02:57.8]} 4... Bg7 {[%clk 0:02:48.4]} 5. c4 {[%clk 0:02:57.9]}
5... Nf6 {[%clk 0:02:47.1]} 6. Nc3 {[%clk 0:02:56.4]} 6... O-O {[%clk 0:02:43]}
7. Be2 {[%clk 0:02:50.5]} 7... a6 {[%clk 0:02:39.3]} 8. O-O {[%clk 0:02:47.3]}
8... b5 {[%clk 0:02:38.9]} 9. c5 {[%clk 0:02:43.1]} 9... a5 {[%clk 0:02:35.3]}
10. Ne5 {[%clk 0:02:40]} 10... Ne4 {[%clk 0:02:29.5]} 11. Bf3 {[%clk 0:02:22.8]}
11... f5 {[%clk 0:02:24.6]} 12. Nxe4 {[%clk 0:02:16]} 12... fxe4 {[%clk
0:02:23.1]} 13. Bg4 {[%clk 0:02:16.4]} 13... Bf5 {[%clk 0:02:11.9]} 14. Bd2
{[%clk 0:02:12.7]} 14... Qc8 {[%clk 0:02:06.4]} 15. Be2 {[%clk 0:02:05.7]} 15...
Nd7 {[%clk 0:02:02.3]} 16. Ng4 {[%clk 0:01:40.9]} 16... Nf6 {[%clk 0:01:36.1]}
17. Nf2 {[%clk 0:01:38.6]} 17... Be6 {[%clk 0:01:33.4]} 18. Kh1 {[%clk
0:01:22.4]} 18... Kh8 {[%clk 0:01:27.2]} 19. Rg1 {[%clk 0:01:19.5]} 19... Ng8
{[%clk 0:01:19]} 20. g4 {[%clk 0:01:18.2]} 20... g5 {[%clk 0:01:06.7]} 21. Nh3
{[%clk 0:00:57.7]} 21... gxf4 {[%clk 0:01:01.9]} 22. exf4 {[%clk 0:00:54.5]}
22... Bxd4 {[%clk 0:00:54.4]} 23. Bc3 {[%clk 0:00:54.5]} 23... Bf6 {[%clk
0:00:32.2]} 24. f5 {[%clk 0:00:43.1]} 24... Bd7 {[%clk 0:00:23.9]} 25. Nf4
{[%clk 0:00:34.5]} 25... Qe8 {[%clk 0:00:18.7]} 26. g5 {[%clk 0:00:26.6]} 26...
Bxc3 {[%clk 0:00:17.3]} 27. bxc3 {[%clk 0:00:26.9]} 27... Bxf5 {[%clk
0:00:10.7]} 28. Qd4+ {[%clk 0:00:26.6]} 28... e5 {[%clk 0:00:11.2]} 29. Qe3
{[%clk 0:00:21.9]} 29... exf4 {[%clk 0:00:11.3]} 30. Qd4+ {[%clk 0:00:21.7]}
30... Nf6 {[%clk 0:00:11.9]} 31. gxf6 {[%clk 0:00:21.8]} 31... Qf7 {[%clk
0:00:12.6]} 32. Rg5 {[%clk 0:00:19.3]} 32... Bg6 {[%clk 0:00:06.6]} 33. Re5
{[%clk 0:00:15.7]} 33... Qxf6 {[%clk 0:00:06.8]} 34. Rf1 {[%clk 0:00:16.6]}
34... Kg8 {[%clk 0:00:04.8]} 35. Bg4 {[%clk 0:00:16.3]} 35... Rae8 {[%clk
0:00:05]} 36. Rxe8 {[%clk 0:00:15.6]} 36... Bxe8 {[%clk 0:00:01.9]} 37. Qg1
{[%clk 0:00:16.2]} 37... Bg6 {[%clk 0:00:02.4]} 38. Bd7 {[%clk 0:00:15.9]} 38...
Rd8 {[%clk 0:00:01.6]} 39. Qg4 {[%clk 0:00:16]} 39... Rf8 {[%clk 0:00:01.9]} 40.
h4 {[%clk 0:00:11.8]} 40... Kh8 {[%clk 0:00:02.6]} 41. h5 {[%clk 0:00:12.1]}
41... Bf5 {[%clk 0:00:03.3]} 42. Bxf5 {[%clk 0:00:08.2]} 42... Qxf5 {[%clk
0:00:04.2]} 43. Qh4 {[%clk 0:00:09.1]} 43... f3 {[%clk 0:00:04]} 44. h6 {[%clk
0:00:09.6]} 44... Qf6 {[%clk 0:00:04.2]} 45. Qh3 {[%clk 0:00:09.3]} 45... Qf5
{[%clk 0:00:04]} 46. Qh4 {[%clk 0:00:09.3]} 46... Qf6 {[%clk 0:00:04.1]} 47. Qh3
{[%clk 0:00:09.6]} 47... e3 {[%clk 0:00:04.8]} 48. Kh2 {[%clk 0:00:08.7]} 48...
e2 {[%clk 0:00:05.2]} 49. Rg1 {[%clk 0:00:06.2]} 49... f2 {[%clk 0:00:04.8]} 0-1

[Event "Late-Titled-Tuesday-Blitz-February-20-2024"]
[Site "Chess.com"]
[Date "2024.02.20"]
[Round "7"]
[White "ArchibaldCerveza29"]
[Black "campochess"]
[Result "1-0"]
[WhiteElo "2436"]
[BlackElo "2160"]
[TimeControl "180+1"]
[EndTime "15:17:48 PST"]
[Termination "ArchibaldCerveza29 won on time"]

1. e4 {[%clk 0:03:00.9]} 1... c5 {[%clk 0:02:55.8]} 2. Nf3 {[%clk 0:02:59.7]}
2... Nc6 {[%clk 0:02:55.8]} 3. Bb5 {[%clk 0:02:58.5]} 3... e5 {[%clk 0:02:53.9]}
4. O-O {[%clk 0:02:55.9]} 4... Bd6 {[%clk 0:02:53.1]} 5. Re1 {[%clk 0:02:51.8]}
5... Nge7 {[%clk 0:02:52.2]} 6. a4 {[%clk 0:02:49.1]} 6... O-O {[%clk
0:02:51.4]} 7. Nc3 {[%clk 0:02:48.6]} 7... a6 {[%clk 0:02:49.9]} 8. Bc4 {[%clk
0:02:47.3]} 8... Nd4 {[%clk 0:02:45.7]} 9. d3 {[%clk 0:02:37.4]} 9... Nec6
{[%clk 0:02:43.6]} 10. Nd5 {[%clk 0:02:32.1]} 10... Nxf3+ {[%clk 0:02:39.2]} 11.
Qxf3 {[%clk 0:02:31]} 11... Nd4 {[%clk 0:02:39.2]} 12. Qd1 {[%clk 0:02:30.7]}
12... Rb8 {[%clk 0:02:32.9]} 13. c3 {[%clk 0:02:29.8]} 13... Ne6 {[%clk
0:02:32.3]} 14. Qh5 {[%clk 0:02:24.6]} 14... Be7 {[%clk 0:02:18.7]} 15. a5
{[%clk 0:02:17]} 15... d6 {[%clk 0:02:18.4]} 16. f4 {[%clk 0:02:14.8]} 16...
exf4 {[%clk 0:02:17.4]} 17. Nxf4 {[%clk 0:02:13.6]} 17... g6 {[%clk 0:01:42.7]}
18. Qf3 {[%clk 0:02:09.1]} 18... Ng7 {[%clk 0:01:39.3]} 19. Rf1 {[%clk
0:02:05.9]} 19... Kh8 {[%clk 0:01:38]} 20. Bd2 {[%clk 0:01:57.4]} 20... f5
{[%clk 0:01:37.8]} 21. Qh3 {[%clk 0:01:55.1]} 21... Qe8 {[%clk 0:01:29]} 22. Qf3
{[%clk 0:01:37]} 22... fxe4 {[%clk 0:01:20.3]} 23. Qxe4 {[%clk 0:01:37.9]} 23...
Bf5 {[%clk 0:01:14.2]} 24. Qe2 {[%clk 0:01:37.4]} 24... Bf6 {[%clk 0:01:08.3]}
25. Rae1 {[%clk 0:01:33.2]} 25... Qxe2 {[%clk 0:01:07]} 26. Rxe2 {[%clk
0:01:34.1]} 26... Rfe8 {[%clk 0:01:06.4]} 27. Rfe1 {[%clk 0:01:30.8]} 27... Rxe2
{[%clk 0:01:05.7]} 28. Rxe2 {[%clk 0:01:31.7]} 28... Re8 {[%clk 0:01:04.9]} 29.
Rxe8+ {[%clk 0:01:30.2]} 29... Nxe8 {[%clk 0:01:03.6]} 30. Bd5 {[%clk
0:01:28.9]} 30... Bd8 {[%clk 0:00:58.8]} 31. b4 {[%clk 0:01:22.6]} 31... cxb4
{[%clk 0:00:57.4]} 32. cxb4 {[%clk 0:01:22.5]} 32... Bc8 {[%clk 0:00:51.4]} 33.
Bf7 {[%clk 0:01:00.4]} 33... Nf6 {[%clk 0:00:47.4]} 34. Nd5 {[%clk 0:00:56]}
34... Nxd5 {[%clk 0:00:44.5]} 35. Bxd5 {[%clk 0:00:56.9]} 35... Bf6 {[%clk
0:00:44.3]} 36. Kf2 {[%clk 0:00:55.9]} 36... Kg7 {[%clk 0:00:43.3]} 37. Kf3
{[%clk 0:00:55.6]} 37... Be5 {[%clk 0:00:43.1]} 38. h3 {[%clk 0:00:54.5]} 38...
Kf6 {[%clk 0:00:40.7]} 39. g4 {[%clk 0:00:53.1]} 39... g5 {[%clk 0:00:37.3]} 40.
Ke4 {[%clk 0:00:49.7]} 40... h5 {[%clk 0:00:32.9]} 41. gxh5 {[%clk 0:00:47.5]}
41... Bxh3 {[%clk 0:00:24.8]} 42. Kf3 {[%clk 0:00:44.9]} 42... Bc8 {[%clk
0:00:19.9]} 43. Be4 {[%clk 0:00:36.8]} 43... Bh2 {[%clk 0:00:15.8]} 44. h6
{[%clk 0:00:34.7]} 44... Be5 {[%clk 0:00:15.4]} 45. h7 {[%clk 0:00:31.8]} 45...
Kg7 {[%clk 0:00:14.9]} 46. Bxg5 {[%clk 0:00:31]} 46... Bc3 {[%clk 0:00:11.9]}
47. Bd8 {[%clk 0:00:18.8]} 47... d5 {[%clk 0:00:11.8]} 48. Bxd5 {[%clk 0:00:18]}
48... Kxh7 {[%clk 0:00:10.6]} 49. Be7 {[%clk 0:00:17.3]} 49... Kg6 {[%clk
0:00:08.7]} 50. Ke4 {[%clk 0:00:14.8]} 50... Bf5+ {[%clk 0:00:07.2]} 51. Ke3
{[%clk 0:00:14.7]} 51... Bc8 {[%clk 0:00:07.1]} 52. Bc5 {[%clk 0:00:14.4]} 52...
Kf5 {[%clk 0:00:05.7]} 53. d4 {[%clk 0:00:14.7]} 53... Be1 {[%clk 0:00:03.6]}
54. Kd3 {[%clk 0:00:15.2]} 1-0